bitfinex/quotes_SOLUSD_20241229
["timestamp","ask_amount","ask_price","bid_price","bid_amount"]
[1735514824170,6.6857123,189.15,189.03,9.70387742]
[1735514824471,6.6857123,189.15,189.06,20.0]
[1735514824772,6.6857123,189.15,189.06,20.6925335]
[1735514826043,6.6857123,189.15,189.06,0.6925335]
[1735514826246,8.0193,189.21,189.12,20.0]
[1735514826450,8.0193,189.21,189.14,20.0]
[1735514826770,1.5443,189.21,189.14,20.69171912]
[1735514827569,1.5443,189.21,189.14,0.69171912]
[1735514827960,8.17594817,189.23,189.17,20.0]
[1735514828279,1.49023587,189.23,189.17,20.0]
[1735514828568,8.0193,189.26,189.14,0.69171912]
[1735514828972,8.0193,189.26,189.17,20.0]
[1735514829967,1.5443,189.26,189.17,20.0]
[1735514830157,1.5443,189.26,189.18,20.0]
[1735514830360,1.5443,189.26,189.19,20.0]
[1735514830588,1.5443,189.26,189.2,20.0]
[1735514830870,1.5443,189.26,189.19,20.0]
[1735514831372,1.5443,189.26,189.17,0.69130454]
[1735514831574,1.5443,189.26,189.16,0.69130459]
[1735514835848,9.22075428,189.26,189.16,20.0]
[1735514836480,9.22075428,189.26,189.17,20.0]
[1735514836874,8.2300123,189.26,189.17,20.0]
[1735514837067,8.2300123,189.26,189.18,20.0]
[1735514837883,1.5443,189.26,189.2,20.0]
[1735514838087,14.7467123,189.31,189.22,20.0]
[1735514838383,14.7467123,189.31,189.23,20.0]
[1735514839080,14.7467123,189.31,189.24,20.0]
[1735514840579,14.7467123,189.31,189.23,20.0]
[1735514841279,14.7467123,189.31,189.19,23.776884]
[1735514841580,14.7467123,189.31,189.22,20.0]
[1735514842784,8.2717123,189.31,189.23,20.0]
[1735514843879,1.586,189.31,189.22,20.69086883]
[1735514844081,1.586,189.31,189.23,23.776884]
[1735514844274,1.5385,189.35,189.27,20.0]
[1735514844653,1.5385,189.35,189.26,15.13899048]
[1735514844861,1.5385,189.35,189.29,20.0]
[1735514845386,1.5385,189.35,189.28,20.0]
[1735514846956,1.5385,189.35,189.29,20.0]
[1735514847571,6.0836,189.4,189.3,0.69022735]
[1735514852079,1.5385,189.41,189.35,20.0]
[1735514852272,1.5385,189.41,189.36,20.0]
[1735514852868,1.5385,189.41,189.35,20.0]
[1735514853099,1.5385,189.41,189.34,9.67061158]
[1735514853262,1.5385,189.41,189.37,20.0]
[1735514853763,1.5385,189.41,189.34,20.0]
[1735514853967,1.5385,189.41,189.35,20.0]
[1735514854786,1.5385,189.41,189.32,0.68964721]
[1735514854987,0.9900832,189.4,189.28,15.80171614]
[1735514855283,6.1011,189.38,189.25,15.11200671]
[1735514855465,0.99026885,189.37,189.24,16.61520671]
[1735514855872,0.99026885,189.37,189.21,6.6056]
[1735514855873,1.6448,189.36,189.22,15.11200671]
[1735514856072,0.9904171,189.35,189.23,0.69069057]
[1735514856282,0.9904171,189.35,189.26,20.0]
[1735514856768,4.43105422,189.36,189.27,20.0]
[1735514856968,1.6448,189.36,189.28,20.0]
[1735514858083,1.6448,189.36,189.25,0.69035872]
[1735514858791,1.6448,189.36,189.28,20.0]
[1735514861791,1.6448,189.36,189.26,15.11200671]
[1735514862774,1.6448,189.36,189.27,0.69026693]
[1735514862982,1.6448,189.36,189.3,20.0]
[1735514863778,1.6448,189.36,189.31,20.0]
[1735514864581,1.6448,189.36,189.32,20.0]
[1735514865694,6.6857123,189.41,189.32,20.0]
[1735514865897,1.6019,189.42,189.34,20.0]
[1735514866904,1.6019,189.42,189.35,20.0]
[1735514867088,1.6019,189.42,189.36,20.0]
[1735514867478,1.6019,189.42,189.38,20.0]
[1735514868193,6.3711,189.44,189.38,20.0]
[1735514868373,1.6662,189.46,189.39,20.0]
[1735514871900,0.98965765,189.45,189.38,20.0]
[1735514872089,0.98983961,189.44,189.38,20.0]
[1735514872290,6.90513938,189.46,189.31,0.68917168]
[1735514872291,23.776884,189.45,189.31,0.68917168]
[1735514872498,0.99000262,189.44,189.31,0.68917168]
[1735514872690,30.4625963,189.45,189.33,20.0]
[1735514872997,0.99000186,189.44,189.34,20.0]
[1735514873208,30.4625963,189.45,189.35,20.0]
[1735514873374,0.98999068,189.44,189.35,20.0]
[1735514873577,30.4625963,189.45,189.35,20.0]
[1735514873778,0.98999128,189.44,189.33,20.0]
[1735514873994,30.4625963,189.45,189.33,20.0]
[1735514874202,23.776884,189.43,189.3,0.68984153]
[1735514874399,1.6662,189.41,189.27,15.11200671]
[1735514874708,0.99009429,189.4,189.31,20.0]
[1735514875889,2.65628687,189.41,189.32,20.0]
[1735514876093,1.6662,189.41,189.34,20.0]
[1735514876294,0.99006153,189.4,189.34,20.0]
[1735514876807,2.65628039,189.41,189.32,20.0]
[1735514880893,2.65628039,189.41,189.31,20.0]
[1735514881906,1.6662,189.41,189.33,9.6743085]
[1735514882112,7.8188,189.46,189.38,20.0]
[1735514882604,8.80860306,189.46,189.37,20.0]
[1735514883802,7.8188,189.46,189.37,20.0]
[1735514883989,7.8188,189.46,189.38,20.0]
[1735514884684,7.8188,189.46,189.35,0.68932495]
[1735514886296,8.80860698,189.46,189.35,0.68932495]
[1735514886706,7.8188,189.46,189.35,0.68932495]
[1735514888417,32.94259847,189.45,189.31,0.68938897]
[1735514888594,32.94259847,189.45,189.33,20.0]
[1735514888997,32.94259847,189.45,189.34,20.0]
[1735514889607,32.94259847,189.45,189.3,16.64081986]
[1735514889608,32.94259847,189.45,189.33,20.0]
[1735514890698,32.94259847,189.45,189.34,20.0]
[1735514891314,9.16571447,189.45,189.34,20.0]
[1735514891501,9.16571447,189.45,189.36,20.0]
[1735514892591,9.16571447,189.45,189.35,20.0]
[1735514893120,9.16571447,189.45,189.36,20.0]
[1735514894520,9.16571447,189.45,189.35,20.0]
[1735514896218,7.6754786,189.45,189.35,20.0]
[1735514896419,0.9897663,189.45,189.35,20.0]
[1735514896609,7.8188,189.46,189.36,20.0]
[1735514897127,7.8188,189.46,189.37,20.0]
[1735514897920,7.8188,189.46,189.34,15.79679865]
[1735514898127,7.8188,189.46,189.37,20.0]
[1735514901825,1.6662,189.46,189.4,15.10741986]
[1735514902127,8.046,189.51,189.44,20.0]
[1735514902924,8.046,189.51,189.43,20.0]
[1735514903129,0.98954004,189.5,189.43,20.0]
[1735514904309,0.98954004,189.5,189.42,20.0]
[1735514905827,8.046,189.51,189.42,20.0]
[1735514909634,8.046,189.51,189.43,20.0]
[1735514910436,8.046,189.51,189.42,20.0]
[1735514911631,1.5898,189.51,189.43,10.35289188]
[1735514912626,1.5898,189.51,189.47,20.0]
[1735514913014,6.4562,189.55,189.47,20.0]
[1735514917238,0.98918772,189.54,189.47,20.0]
[1735514921247,0.98918772,189.54,189.45,20.0]
[1735514921747,0.98918772,189.54,189.46,20.0]
[1735514922051,6.4562,189.55,189.46,20.0]
[1735514923352,6.4562,189.55,189.46,29.66424614]
[1735514923556,1.6361,189.56,189.52,20.0]
[1735514924230,1.6361,189.56,189.51,20.0]
[1735514925239,1.6361,189.56,189.5,20.0]
[1735514926947,1.6361,189.56,189.46,29.66424614]
[1735514927555,1.6361,189.56,189.5,20.0]
[1735514928855,1.6361,189.56,189.51,20.0]
[1735514929859,1.6361,189.56,189.5,20.0]
[1735514934159,1.6361,189.56,189.47,10.35234481]
[1735514934160,1.6361,189.56,189.47,0.68809867]
[1735514934340,1.6361,189.56,189.48,20.0]
[1735514934539,1.6361,189.56,189.49,20.0]
[1735514934753,1.6361,189.56,189.49,26.685712]
[1735514935061,1.6361,189.56,189.49,20.0]
[1735514935782,1.6361,189.56,189.5,20.0]
[1735514935935,1.6361,189.56,189.51,20.0]
[1735514939270,6.3033,189.59,189.52,20.0]
[1735514939462,1.5845,189.6,189.52,20.0]
[1735514939641,1.5845,189.6,189.51,20.0]
[1735514939839,1.5845,189.6,189.52,9.66424614]
[1735514940047,7.75763587,189.63,189.57,20.0]
[1735514940350,6.2674,189.63,189.57,20.0]
[1735514940836,6.2674,189.63,189.56,20.0]
[1735514943661,6.2674,189.63,189.57,20.0]
[1735514944357,1.5845,189.64,189.58,20.0]
[1735514944663,1.5845,189.64,189.59,20.0]
[1735514944855,1.5845,189.64,189.6,20.0]
[1735514945035,6.6857123,189.67,189.6,20.0]
[1735514945440,1.5476,189.69,189.63,20.0]
[1735514945645,14.81694817,189.72,189.67,20.0]
[1735514945878,1.49023587,189.72,189.67,20.0]
[1735514947374,1.5476,189.74,189.67,20.0]
[1735514948374,1.5476,189.74,189.68,20.0]
[1735514948865,1.5476,189.74,189.7,20.0]
[1735514950551,6.6857123,189.77,189.7,20.0]
[1735514952072,6.6857123,189.77,189.66,29.66424614]
[1735514952663,6.6857123,189.77,189.7,20.0]
[1735514952858,1.5476,189.79,189.7,20.0]
[1735514954375,1.5476,189.79,189.71,20.0]
[1735514954667,23.776884,189.77,189.62,16.01224614]
[1735514954882,23.776884,189.75,189.62,7.0346009]
[1735514955053,0.98832804,189.74,189.62,16.69884704]
[1735514955244,1.5476,189.73,189.62,0.6866009]
[1735514955445,1.5476,189.73,189.64,20.0]
[1735514955756,2.53593966,189.73,189.64,20.0]
[1735514957447,2.53593966,189.73,189.62,0.6866009]
[1735514957982,2.53601252,189.73,189.62,0.6866009]
[1735514958894,2.53601252,189.73,189.65,20.0]
[1735514958895,1.5476,189.73,189.65,20.0]
[1735514959250,1.5476,189.73,189.66,20.0]
[1735514959986,8.0607,189.78,189.7,20.0]
[1735514961171,9.04878017,189.78,189.69,20.0]
[1735514961556,15.73449247,189.78,189.69,20.0]
[1735514961885,15.73449247,189.78,189.64,29.66424614]
[1735514962088,6.6857123,189.77,189.68,20.0]
[1735514962297,7.67388278,189.77,189.69,20.0]
[1735514963301,7.67388278,189.77,189.65,9.66424614]
[1735514963594,7.67388278,189.77,189.68,20.0]
[1735514964190,7.67388278,189.77,189.63,23.776884]
[1735514964191,7.67388278,189.77,189.66,29.66424614]
[1735514965572,7.67388278,189.77,189.66,20.0]
[1735514965781,7.67388278,189.77,189.68,20.0]
[1735514967372,7.67388278,189.77,189.65,9.66424614]
[1735514967373,7.67388278,189.77,189.66,20.0]
[1735514967579,7.67388278,189.77,189.68,20.0]
[1735514967983,6.6857123,189.77,189.7,20.0]
[1735514968288,8.0607,189.78,189.7,20.0]
[1735514970413,8.0607,189.78,189.7,9.66424614]
[1735514971512,1.5766,189.78,189.73,20.0]
[1735514971802,0.98797326,189.81,189.74,20.0]
[1735514972200,0.98797326,189.81,189.75,20.0]
[1735514972606,14.7464123,189.82,189.76,20.0]
[1735514972814,8.0607,189.82,189.77,20.0]
[1735514973340,1.5766,189.82,189.77,20.0]
[1735514973789,1.5766,189.82,189.78,20.0]
[1735514974289,8.0307,189.86,189.78,20.0]
[1735514974597,8.0307,189.86,189.79,20.0]
[1735514975003,8.0307,189.86,189.8,20.0]
[1735514976309,8.0307,189.86,189.79,20.0]
[1735514976878,8.0307,189.86,189.8,20.0]
[1735514977430,8.0307,189.86,189.76,0.68510798]
[1735514979596,1.5165,189.86,189.8,20.0]
[1735514980507,1.5165,189.86,189.79,20.0]
[1735514981006,24.76447095,189.85,189.68,7.9348]
[1735514981212,6.5142,189.84,189.7,9.66424614]
[1735514981389,0.98794313,189.83,189.73,20.0]
[1735514981584,0.98794313,189.83,189.69,0.68573724]
[1735514981791,0.98794313,189.83,189.69,10.34998338]
[1735514982120,0.98794313,189.83,189.72,20.0]
[1735514982305,1.5165,189.82,189.72,20.0]
[1735514982506,0.98802139,189.81,189.72,20.0]
[1735514983012,0.98802139,189.81,189.68,17.59904614]
[1735514984014,0.98802139,189.81,189.71,20.0]
[1735514985197,0.98802139,189.81,189.72,20.0]
[1735514986107,1.5165,189.82,189.74,20.0]
[1735514987202,0.98786802,189.81,189.68,7.9348]
[1735514987399,0.98786802,189.81,189.69,0.68585853]
[1735514987594,0.98786802,189.81,189.72,20.0]
[1735514988111,0.98786802,189.81,189.69,0.68585853]
[1735514988342,0.98786802,189.81,189.71,20.0]
[1735514989113,0.98786802,189.81,189.73,20.0]
[1735514989300,0.98786802,189.81,189.68,7.9348]
[1735514989301,1.5165,189.82,189.75,20.0]
[1735514989815,1.5165,189.82,189.74,20.0]
[1735514990195,1.5165,189.82,189.73,9.66424614]
[1735514991396,1.5165,189.82,189.75,20.0]
[1735514991905,1.5165,189.82,189.76,20.0]
[1735514993226,1.5165,189.82,189.72,29.66424614]
[1735514993631,1.5165,189.82,189.76,20.0]
[1735514994528,1.5165,189.82,189.72,29.66424614]
[1735514995054,1.5165,189.82,189.72,20.0]
[1735514995229,1.5165,189.82,189.72,30.34986215]
[1735515000205,1.5165,189.82,189.72,20.68561601]
[1735515000414,0.98785526,189.81,189.68,9.66424614]
[1735515000830,0.98785526,189.81,189.69,9.66424614]
[1735515001339,0.98785526,189.81,189.73,20.0]
[1735515001838,0.98785526,189.81,189.72,20.0]
[1735515002419,7.8403,189.8,189.7,20.0]
[1735515002739,0.98810726,189.79,189.72,20.0]
[1735515002911,7.8403,189.8,189.72,20.0]
[1735515003237,0.98802282,189.79,189.72,20.0]
[1735515004032,0.98802282,189.79,189.68,9.66424614]
[1735515004551,0.98802282,189.79,189.71,20.0]
[1735515005608,0.98802282,189.79,189.68,20.0]
[1735515005816,0.98802282,189.79,189.7,20.0]
[1735515006324,0.98802282,189.79,189.68,20.0]
[1735515006528,23.776884,189.76,189.63,8.31836747]
[1735515006837,6.2439,189.8,189.62,7.8403]
[1735515006838,23.776884,189.73,189.62,8.31836747]
[1735515007040,0.98864326,189.72,189.62,8.31836747]
[1735515007226,0.98864326,189.72,189.65,20.0]
[1735515007426,23.776884,189.71,189.62,8.31836747]
[1735515007611,1.5636,189.69,189.62,8.31836747]
[1735515007809,1.5636,189.69,189.65,20.0]
[1735515008031,0.98856112,189.68,189.65,20.0]
[1735515008349,0.98856112,189.68,189.6,20.0]
[1735515008530,1.5636,189.69,189.6,20.0]
[1735515008837,1.5636,189.69,189.55,9.00546363]
[1735515008838,0.98860125,189.68,189.59,20.0]
[1735515009332,1.5636,189.69,189.61,20.0]
[1735515009921,1.5636,189.69,189.63,20.0]
[1735515010440,1.5636,189.69,189.62,20.0]
[1735515011625,1.5636,189.69,189.57,9.66424614]
[1735515011831,1.5636,189.69,189.6,20.0]
[1735515012229,1.5636,189.69,189.55,8.96912066]
[1735515012415,0.98867658,189.68,189.55,8.96912066]
[1735515012616,0.98867658,189.68,189.58,20.0]
[1735515012816,6.325,189.67,189.58,20.0]
[1735515013832,6.325,189.67,189.6,20.0]
[1735515014957,6.325,189.67,189.56,9.66424614]
[1735515015171,6.325,189.67,189.59,20.0]
[1735515015358,6.325,189.67,189.58,9.66424614]
[1735515015557,1.5636,189.69,189.59,9.66424614]
[1735515015742,1.5636,189.69,189.63,20.0]
[1735515016163,0.98850991,189.68,189.56,20.0]
[1735515016368,0.98850991,189.68,189.56,29.66424614]
[1735515016656,0.98850991,189.68,189.57,9.66424614]
[1735515016848,0.98850991,189.68,189.56,9.66424614]
[1735515017744,0.98850991,189.68,189.59,20.0]
[1735515019369,1.5636,189.69,189.62,20.0]
[1735515019973,1.5636,189.69,189.61,9.66424614]
[1735515020264,1.5636,189.69,189.63,20.0]
[1735515021541,1.5636,189.69,189.62,20.0]
[1735515022270,1.5636,189.69,189.57,0.68681935]
[1735515022475,0.98850718,189.68,189.56,9.66424614]
[1735515023464,0.98850718,189.68,189.58,20.0]
[1735515025169,0.98850718,189.68,189.59,20.0]
[1735515026972,0.98850718,189.68,189.58,20.0]
[1735515028471,6.1774,189.67,189.58,20.0]
[1735515028772,0.98871954,189.66,189.58,20.0]
[1735515029470,6.1774,189.67,189.59,20.0]
[1735515029771,1.5636,189.69,189.63,20.0]
[1735515033173,1.5636,189.69,189.61,9.66424614]
[1735515034072,1.5636,189.69,189.65,20.0]
[1735515034372,1.5636,189.69,189.66,20.0]
[1735515034754,6.1774,189.72,189.67,20.0]
[1735515034960,1.6098,189.74,189.67,20.0]
[1735515037351,1.6098,189.74,189.68,20.0]
[1735515037556,1.6098,189.74,189.69,20.0]
[1735515038483,1.6098,189.79,189.7,20.68607327]
[1735515039875,0.9879817,189.86,189.81,20.0]
[1735515040086,0.9879817,189.86,189.78,9.66424614]
[1735515040087,0.98761929,189.94,189.85,20.0]
[1735515040274,0.98761929,189.94,189.8,23.776884]
[1735515040460,0.98761929,189.94,189.81,0.68453175]
[1735515040662,23.776884,189.93,189.75,0.68480758]
[1735515040850,23.776884,189.89,189.72,0.68498296]
[1735515041179,0.98767211,189.88,189.72,9.66424614]
[1735515041496,23.776884,189.86,189.71,8.28201313]
[1735515041650,25.277684,189.82,189.66,8.28201313]
[1735515041983,0.98835222,189.81,189.73,20.0]
[1735515042367,23.776884,189.8,189.66,8.28201313]
[1735515042569,0.98821396,189.79,189.66,9.66424614]
[1735515042768,0.98821396,189.79,189.69,20.0]
[1735515042951,0.98821396,189.79,189.66,10.35045371]
[1735515043155,23.776884,189.78,189.66,0.68620757]
[1735515043354,0.98820928,189.77,189.63,10.35048971]
[1735515043755,8.0617,189.76,189.66,20.0]
[1735515043989,0.98831845,189.75,189.66,20.0]
[1735515044199,8.0617,189.76,189.66,29.66424614]
[1735515044356,8.0617,189.76,189.7,20.0]
[1735515045492,1.5008,189.76,189.7,20.0]
[1735515045794,1.5008,189.8,189.74,20.0]
[1735515046092,1.5008,189.93,189.76,20.0]
[1735515046291,0.98775595,189.92,189.76,20.0]
[1735515046489,0.98775595,189.92,189.74,15.05594512]
[1735515046490,0.98775595,189.92,189.78,20.0]
[1735515046861,23.776884,189.91,189.79,20.0]
[1735515047061,0.98763345,189.9,189.79,20.0]
[1735515047574,0.98763345,189.9,189.78,20.0]
[1735515047778,0.98763345,189.9,189.79,20.0]
[1735515047967,0.98762051,189.92,189.79,20.0]
[1735515049798,23.776884,189.91,189.79,20.0]
[1735515050102,23.776884,189.87,189.72,15.05594512]
[1735515050398,2.62910104,189.86,189.71,15.05594512]
[1735515050592,23.776884,189.85,189.73,20.0]
[1735515050758,23.776884,189.83,189.69,15.05594512]
[1735515050964,0.98798498,189.82,189.73,20.0]
[1735515051899,1.6412,189.86,189.75,20.0]
[1735515052066,0.98787957,189.85,189.75,20.0]
[1735515052273,24.76476357,189.85,189.75,20.0]
[1735515052600,24.76476357,189.85,189.74,20.0]
[1735515052808,0.98787957,189.85,189.77,20.0]
[1735515053007,1.6412,189.86,189.78,20.0]
[1735515053172,1.6412,189.86,189.79,20.0]
[1735515055207,0.98766234,189.85,189.78,20.0]
[1735515055385,24.76454634,189.85,189.78,20.0]
[1735515055584,24.76454634,189.85,189.7,15.05594512]
[1735515055784,24.76454634,189.85,189.74,20.0]
[1735515058507,23.776884,189.84,189.68,35.05594512]
[1735515058674,0.98805664,189.83,189.68,35.05594512]
[1735515058876,0.98805664,189.83,189.72,20.0]
[1735515059576,0.98803045,189.82,189.72,20.0]
[1735515059811,0.98802628,189.84,189.72,20.0]
[1735515060704,6.112,189.83,189.66,35.74174276]
[1735515060913,24.76504251,189.82,189.66,35.74174276]
[1735515061322,0.98815851,189.82,189.71,15.05594512]
[1735515061610,0.98815851,189.82,189.75,20.0]
[1735515061789,6.112,189.83,189.75,20.0]
[1735515062404,6.112,189.83,189.76,20.0]
[1735515062713,1.6412,189.86,189.76,20.0]
[1735515063011,1.6412,189.86,189.78,20.0]
[1735515063505,0.98764301,189.85,189.77,20.0]
[1735515064194,0.98764301,189.85,189.75,20.0]
[1735515065914,23.776884,189.84,189.75,20.0]
[1735515066112,0.98799488,189.83,189.74,20.0]
[1735515066809,0.98799488,189.83,189.69,15.05594512]
[1735515067018,23.776884,189.82,189.67,16.59904512]
[1735515067233,7.52166114,189.81,189.66,35.05594512]
[1735515067423,1.5391,189.79,189.7,20.0]
[1735515067599,0.98816951,189.78,189.7,20.0]
[1735515068119,0.98816951,189.78,189.69,20.0]
[1735515071031,0.98816951,189.78,189.68,20.0]
[1735515071725,0.98816951,189.78,189.69,20.0]
[1735515073239,0.98816951,189.78,189.68,20.0]
[1735515074610,0.98816951,189.78,189.69,20.0]
[1735515074811,1.5391,189.79,189.7,20.0]
[1735515075523,1.5391,189.79,189.7,15.05594512]
[1735515075719,1.5391,189.79,189.73,20.0]
[1735515076126,1.5391,189.79,189.74,20.0]
[1735515076315,0.98811155,189.87,189.74,20.0]
[1735515076316,1.5391,189.83,189.76,20.0]
[1735515076526,6.5335,189.86,189.77,15.05594512]
[1735515076924,6.5335,189.86,189.78,15.05594512]
[1735515077523,1.5391,189.88,189.78,15.05594512]
[1735515077719,1.5391,189.88,189.78,15.74085306]
[1735515077940,1.5391,189.88,189.82,20.0]
[1735515078413,1.5391,189.88,189.81,20.0]
[1735515078912,0.98766312,189.87,189.81,20.0]
[1735515079347,0.98766312,189.87,189.77,20.0]
[1735515079847,0.98766312,189.87,189.79,20.0]
[1735515080059,0.98764408,189.87,189.79,20.0]
[1735515080351,0.98764408,189.87,189.75,15.05594512]
[1735515080523,0.98764408,189.87,189.78,20.0]
[1735515081041,0.98764408,189.87,189.74,15.05594512]
[1735515081242,0.98764408,189.87,189.73,15.74117182]
[1735515081543,0.98764408,189.87,189.68,8.28201313]
[1735515081544,23.776884,189.86,189.7,15.05594512]
[1735515081746,0.9879107,189.85,189.69,15.74141012]
[1735515082130,23.776884,189.84,189.69,15.74141012]
[1735515082451,0.98799361,189.83,189.72,20.0]
[1735515082629,23.776884,189.86,189.72,20.0]
[1735515082828,23.776884,189.86,189.69,15.74141012]
[1735515082829,23.776884,189.84,189.69,15.74141012]
[1735515083057,0.98797619,189.83,189.69,15.74141012]
[1735515083943,1.5131,189.81,189.67,6.509]
[1735515084135,0.98811354,189.8,189.66,15.05594512]
[1735515084349,0.98811354,189.8,189.7,20.0]
[1735515085039,1.5131,189.81,189.72,20.0]
[1735515085430,0.98791388,189.8,189.72,20.0]
[1735515085928,1.5131,189.81,189.72,20.0]
[1735515086130,0.98800913,189.8,189.72,20.0]
[1735515086349,1.5131,189.81,189.72,20.0]
[1735515086538,2.50105578,189.81,189.72,20.0]
[1735515086736,1.5131,189.81,189.71,20.0]
[1735515086950,1.5131,189.81,189.72,24.46253581]
[1735515087161,1.5131,189.81,189.75,20.0]
[1735515087551,1.5131,189.81,189.76,20.0]
[1735515087724,7.5871,189.89,189.77,20.0]
[1735515087931,0.98765232,189.88,189.77,20.0]
[1735515089560,0.98765232,189.88,189.76,15.05594512]
[1735515089758,7.5871,189.89,189.79,20.0]
[1735515090260,7.5871,189.89,189.8,20.68489036]
[1735515091140,0.98748301,189.88,189.8,20.0]
[1735515091545,0.98748301,189.88,189.75,23.776884]
[1735515092547,0.98748301,189.88,189.78,20.0]
[1735515093269,0.98748301,189.88,189.76,20.0]
[1735515093866,23.776884,189.87,189.7,15.05594512]
[1735515094031,23.776884,189.85,189.7,15.05594512]
[1735515094365,0.9879214,189.84,189.73,20.0]
[1735515094659,1.525,189.86,189.7,0.68569917]
[1735515094963,24.76488805,189.85,189.69,38.83282912]
[1735515095157,24.76488805,189.85,189.72,20.0]
[1735515096663,24.76488805,189.85,189.73,20.0]
[1735515097873,0.98800405,189.85,189.74,20.0]
[1735515098075,0.98780198,189.85,189.74,20.0]
[1735515098275,1.525,189.86,189.75,0.68539283]
[1735515098450,1.525,189.86,189.78,20.0]
[1735515099674,1.525,189.86,189.78,26.074]
[1735515099875,0.98771312,189.85,189.74,20.0]
[1735515100177,0.98771312,189.85,189.8,20.0]
[1735515100673,0.98771312,189.85,189.79,20.0]
[1735515100998,23.776884,189.84,189.76,6.074]
[1735515101161,0.98803273,189.83,189.76,6.074]
[1735515101669,0.98796275,189.85,189.74,20.0]
[1735515102378,0.98796275,189.85,189.73,43.776884]
[1735515103150,0.98796275,189.85,189.74,20.0]
[1735515104574,0.98796275,189.85,189.73,20.0]
[1735515104816,1.525,189.86,189.73,44.46223314]
[1735515105103,0.98771462,189.85,189.73,44.46223314]
[1735515106297,0.98771462,189.85,189.74,23.776884]
[1735515106606,1.525,189.86,189.78,20.0]
[1735515107191,23.776884,189.85,189.71,0.68514656]
[1735515107398,6.5325,189.84,189.7,14.35601313]
[1735515107717,0.98802107,189.83,189.73,20.0]
[1735515109386,1.5266,189.82,189.73,20.0]
[1735515109586,0.98804653,189.81,189.73,20.0]
[1735515113320,23.776884,189.8,189.7,6.074]
[1735515113623,1.5266,189.78,189.67,8.28201313]
[1735515113788,0.98827393,189.77,189.68,6.5325]
[1735515113986,0.98827393,189.77,189.67,8.28201313]
[1735515114387,0.98827393,189.77,189.67,14.67161313]
[1735515114686,0.98827393,189.77,189.7,20.0]
[1735515117223,2.51478908,189.78,189.7,20.0]
[1735515122030,23.776884,189.77,189.67,6.3896]
[1735515122336,0.98836343,189.76,189.63,20.0]
[1735515122832,23.776884,189.75,189.6,8.28201313]
[1735515123036,6.3896,189.73,189.59,7.6396]
[1735515123330,23.776884,189.71,189.61,6.3896]
[1735515123513,2.57389414,189.7,189.58,8.28201313]
[1735515123712,2.57389414,189.7,189.61,20.0]
[1735515123919,23.776884,189.69,189.61,20.0]
[1735515124117,0.98879469,189.68,189.61,20.0]
[1735515124432,0.98879469,189.68,189.57,6.3896]
[1735515124804,0.98879469,189.68,189.6,20.0]
[1735515125212,0.98860627,189.69,189.6,20.0]
[1735515125433,1.5852,189.7,189.6,20.0]
[1735515125728,1.5852,189.7,189.62,20.0]
[1735515126601,0.98849681,189.69,189.61,20.0]
[1735515127231,0.98849681,189.69,189.6,20.0]
[1735515129240,24.76538081,189.69,189.6,20.0]
[1735515129414,0.98849681,189.69,189.6,20.0]
[1735515135947,29.889184,189.68,189.5,16.65354512]
[1735515136127,1.5852,189.65,189.5,16.65354512]
[1735515136446,0.98888878,189.64,189.58,20.0]
[1735515136944,1.5852,189.65,189.54,6.1123]
[1735515137127,1.5852,189.65,189.57,20.0]
[1735515137328,1.5852,189.65,189.58,20.0]
[1735515137532,1.5852,189.65,189.59,20.0]
[1735515138348,6.1123,189.68,189.59,15.05594512]